fUSD/lending_fUSD_20240821
["ID","MTS","AMOUNT","RATE_DAILY","PERIOD"]
[335421512,1724217032859,-1000.0,0.000185,7]
[335421513,1724217032869,-1026.0,0.000185,2]
[335421514,1724217032879,-1639.44708649,0.0001859,2]
[335421515,1724217032889,-388.338959,0.00018628,2]
[335421516,1724217032898,-1015.9056,0.0001868,2]
[335421517,1724217032907,-160.0,0.00018684,2]
[335421518,1724217032917,-2252.78247,0.0001869,2]
[335421519,1724217032926,-150.0,0.00018691,2]
[335421520,1724217032935,-150.0,0.00018691,2]
[335421521,1724217032944,-152.04618,0.00018691,2]
[335421522,1724217032953,-5913.339495,0.000187,2]
[335421523,1724217032962,-210.47,0.0001877,2]
[335421524,1724217032972,-167.71474119,0.00018777,2]
[335421525,1724217032981,-1583.79426262,0.0001878,2]
[335421526,1724217032990,-471.6961,0.0001878,2]
[335421527,1724217033000,-44679.3487,0.0001878,2]
[335421528,1724217033009,-181.99380902,0.0001878,2]
[335421529,1724217033019,-7500.0,0.0001878,2]
[335421530,1724217033028,-172.70431108,0.0001878,2]
[335421531,1724217033038,-2055.61,0.00018799,5]
[335421532,1724217033048,-3073.44,0.00018799,5]
[335421533,1724217033057,-368.67720984,0.00018799,2]
[335421534,1724217033067,-1358.44,0.00018799,5]
[335421535,1724217033077,-1618.07,0.00018799,5]
[335421536,1724217033087,-500.0,0.00018799,5]
[335421537,1724217033097,-168.67423828,0.00018799,2]
[335421538,1724217033106,-496.0,0.000188,2]
[335421539,1724217033116,-496.0,0.000188,2]
[335421540,1724217033125,-446.53,0.00018841,2]
[335421541,1724217033135,-534.13107181,0.0001886,5]
[335421542,1724217033145,-500.0,0.0001886,5]
[335421543,1724217033154,-500.0,0.0001886,5]
[335421544,1724217033164,-537.62310238,0.0001886,5]
[335421545,1724217033174,-500.0,0.0001886,5]
[335421546,1724217033183,-552.31238259,0.0001886,5]
[335421547,1724217033193,-568.95540268,0.0001886,5]
[335421548,1724217033203,-536.70869246,0.0001886,5]
[335421549,1724217033212,-285.37167589,0.0001886,5]
[335421550,1724217033221,-500.0,0.0001886,5]
[335421551,1724217033231,-518.70241064,0.00018867,5]
[335421552,1724217033241,-500.0,0.00018867,5]
[335421553,1724217033250,-1494.63,0.00018868,5]
[335421554,1724217033260,-2332.46,0.00018868,5]
[335421555,1724217033270,-500.0,0.00018868,5]
[335421556,1724217033279,-1104.73,0.00018868,5]
[335421557,1724217033297,-1722.25,0.00018868,5]
[335421558,1724217033307,-630.70531713,0.00018868,5]
[335421559,1724217033316,-620.11,0.00018868,5]
[335421560,1724217033325,-500.0,0.00018869,5]
[335421561,1724217033334,-386.31433588,0.00018869,5]
[335421562,1724217033344,-1494.63,0.00018869,5]
[335421563,1724217033353,-1494.63,0.00018869,5]
[335421564,1724217033363,-2332.46,0.00018869,5]
[335421565,1724217033373,-2332.46,0.00018869,5]
[335421566,1724217033382,-500.0,0.00018869,5]
[335421567,1724217033392,-500.0,0.00018869,5]
[335421568,1724217033401,-1104.73,0.00018869,5]
[335421569,1724217033411,-1104.73,0.00018869,5]
[335421570,1724217033420,-1722.25,0.00018869,5]
[335421571,1724217033429,-1722.25,0.00018869,5]
[335421572,1724217033439,-571.72064936,0.00018869,5]
[335421573,1724217033449,-620.11,0.00018869,5]
[335421574,1724217033459,-620.11,0.00018869,5]
[335421575,1724217033469,-1494.63,0.00018878,5]
[335421576,1724217033478,-2332.46,0.00018878,5]
[335421577,1724217033488,-500.0,0.00018878,5]
[335421578,1724217033498,-1104.73,0.00018878,5]
[335421579,1724217033508,-1722.25,0.00018878,5]
[335421580,1724217033518,-620.11,0.00018878,5]
[335421581,1724217033528,-500.0,0.00018879,5]
[335421582,1724217033538,-500.0,0.00018879,5]
[335421583,1724217033548,-500.0,0.00018879,5]
[335421584,1724217033557,-500.0,0.00018879,5]
[335421585,1724217033567,-1494.63,0.00018879,5]
[335421586,1724217033577,-1494.63,0.00018879,5]
[335421587,1724217033586,-1494.63,0.00018879,5]
[335421588,1724217033596,-2332.46,0.00018879,5]
[335421589,1724217033606,-2332.46,0.00018879,5]
[335421590,1724217033616,-2332.46,0.00018879,5]
[335421591,1724217033627,-500.0,0.00018879,5]
[335421592,1724217033637,-500.0,0.00018879,5]
[335421593,1724217033646,-500.0,0.00018879,5]
[335421594,1724217033656,-2055.61,0.00018879,5]
[335421595,1724217033665,-2055.61,0.00018879,5]
[335421596,1724217033674,-2055.61,0.00018879,5]
[335421597,1724217033684,-2055.61,0.00018879,5]
[335421598,1724217033693,-1104.73,0.00018879,5]
[335421599,1724217033703,-1104.73,0.00018879,5]
[335421600,1724217033713,-1104.73,0.00018879,5]
[335421601,1724217033725,-3073.44,0.00018879,5]
[335421602,1724217033734,-3073.44,0.00018879,5]
[335421603,1724217033744,-3073.44,0.00018879,5]
[335421604,1724217033753,-3073.44,0.00018879,5]
[335421605,1724217033763,-1722.25,0.00018879,5]
[335421606,1724217033772,-1722.25,0.00018879,5]
[335421607,1724217033782,-1722.25,0.00018879,5]
[335421608,1724217033793,-1358.44,0.00018879,5]
[335421609,1724217033805,-1358.44,0.00018879,5]
[335421610,1724217033816,-1358.44,0.00018879,5]
[335421611,1724217033825,-1358.44,0.00018879,5]
[335421612,1724217033835,-1618.07,0.00018879,5]
[335421613,1724217033844,-1618.07,0.00018879,5]
[335421614,1724217033853,-1618.07,0.00018879,5]
[335421615,1724217033863,-1618.07,0.00018879,5]
[335421616,1724217033872,-500.0,0.00018879,5]
[335421617,1724217033882,-190.6755443,0.00018879,5]
[335421618,1724217033891,-620.11,0.00018879,5]
[335421619,1724217033900,-620.11,0.00018879,5]
[335421620,1724217033910,-620.11,0.00018879,5]
[335421621,1724217033920,-500.0,0.00018879,5]
[335421622,1724217033929,-500.0,0.00018879,5]
[335421623,1724217033939,-500.0,0.00018879,5]
[335421624,1724217033948,-500.0,0.00018879,5]
[335421625,1724217033958,-122158.73017736,0.0001888,7]
[335421651,1724217037903,-3587.13204952,0.00011999,2]
[335421652,1724217037915,-155.0,0.00013001,2]
[335421653,1724217037925,-528.96350263,0.00013292,2]
[335421654,1724217037934,-874.93114727,0.00018799,2]
[335421655,1724217037944,-696.89559202,0.0001888,7]
[335421656,1724217037956,-4032.83102732,0.0001888,7]
[335421657,1724217037968,-1379.86572107,0.0001888,7]
[335421658,1724217038066,-766949.1342007,0.0001888,7]
[335421659,1724217038123,-665.04732599,0.0001888,7]
[335421660,1724217038181,-1189.82436423,0.0001888,7]
[335421778,1724217039597,-392.88321767,0.00018867,5]
[335421780,1724217039609,-128.90066713,0.00018867,5]
[335421782,1724217039619,-208.37,0.0001887,2]
[335421786,1724217039630,-208.37,0.0001887,2]
[335421789,1724217039639,-208.37,0.0001887,2]
[335421792,1724217039649,-208.37,0.0001887,2]
[335421795,1724217039659,-208.37,0.0001887,2]
[335421798,1724217039669,-138.59608277,0.0001888,7]
[335421810,1724217039779,-14149.63151993,0.0001888,7]
[335421826,1724217039925,-208.37,0.0001887,2]
[335421828,1724217039935,-151.89992697,0.0001888,7]
[335421833,1724217039982,-528.72304049,0.0001888,7]
[335422098,1724217042599,-208.37,0.0001887,2]
[335422101,1724217042609,-140.30314536,0.0001887,2]
[335422193,1724217045514,-68.06685464,0.0001887,2]
[335422194,1724217045523,-208.37,0.0001887,2]
[335422195,1724217045533,-59.53878536,0.0001887,2]
[335422196,1724217045570,-148.83121464,0.0001887,2]
[335422197,1724217045579,-204.67373564,0.0001887,2]
[335422199,1724217434630,150.5,0.000178,120]
[335422200,1724217434948,736.0,0.000178,120]
[335422201,1724217435172,150.5,0.0001779,120]
[335422202,1724217435444,736.0,0.0001779,120]
[335422203,1724217435740,150.5,0.0001778,120]
[335422204,1724217435909,736.0,0.0001778,120]
[335422205,1724217554358,515.0,0.000178,120]
[335422206,1724217554822,515.0,0.0001779,120]
[335422207,1724217555288,515.0,0.0001778,120]
[335422208,1724217674261,360.0,0.000178,120]
[335422209,1724217674718,360.0,0.0001779,120]
[335422210,1724217675172,360.0,0.0001778,120]
[335422211,1724217794338,252.0,0.000178,120]
[335422212,1724217794800,252.0,0.0001779,120]
[335422213,1724217795299,252.0,0.0001778,120]
[335422214,1724217859828,1050.0,0.0001,2]
[335422215,1724217914710,177.0,0.000178,120]
[335422216,1724217915186,177.0,0.0001779,120]
[335422217,1724217915640,177.0,0.0001778,120]
[335422220,1724217991502,150.43,0.00010959,2]
[335422226,1724218034893,150.5,0.000178,120]
[335422229,1724218035386,150.5,0.0001779,120]
[335422230,1724218036124,150.5,0.0001778,120]
[335422235,1724218080147,204.62312072,0.0001,2]
[335422236,1724218089942,2297.10068764,0.00010999,2]
[335422237,1724218089964,2497.14542751,0.00010999,2]
[335422239,1724218139362,5408.2252756,0.00010999,2]
[335422240,1724218150670,365.68547453,0.00010999,2]
[335422241,1724218154612,150.5,0.0001789,120]
[335422242,1724218154972,150.5,0.0001789,120]
[335422245,1724218155105,150.5,0.0001788,120]
[335422246,1724218155747,150.5,0.0001787,120]
[335422247,1724218155812,150.5,0.0001788,120]
[335422248,1724218156278,150.5,0.0001787,120]
[335422250,1724218161755,203.64349501,0.00010999,2]
[335422261,1724218224459,348.98714712,0.00010999,2]
[335422262,1724218228189,156.92829489,0.00010999,2]
[335422273,1724218231664,-500.0,0.00011135,2]
[335422274,1724218231673,-3876.26402382,0.00011336,2]
[335422275,1724218231683,-294.31737985,0.00012552,2]
[335422276,1724218231694,-141.72262015,0.00012552,2]
[335422277,1724218231703,-192.78485247,0.00012613,2]
[335422278,1724218231715,-335.92939992,0.00012613,2]
[335422279,1724218231725,-348.89010204,0.00012613,2]
[335422280,1724218231939,-350.0,0.00012613,2]
[335422281,1724218231951,-48.41030937,0.00012613,2]
[335422282,1724218231962,-474.17060351,0.00012901,2]
[335422283,1724218231973,-2025.82939649,0.00012901,2]
[335422284,1724218231983,-864.13866955,0.0001294,2]
[335422285,1724218231999,-275.07462171,0.0001294,2]
[335422286,1724218232008,-1522.33086506,0.00013001,2]
[335422288,1724218232020,-184.55051806,0.00013001,2]
[335422290,1724218232030,-1021.28854661,0.00013001,2]
[335422292,1724218232041,-399.12662878,0.00013001,2]
[335422293,1724218232052,-1082.35543478,0.00013001,2]
[335422294,1724218232062,-219.09322349,0.00013001,2]
[335422295,1724218232071,-167.22850652,0.00013042,2]
[335422296,1724218232081,-347.92812216,0.00013042,2]
[335422297,1724218232090,-155.72994345,0.00013052,2]
[335422298,1724218232100,-1157.03052786,0.00013052,2]
[335422299,1724218232111,-216.31247235,0.00013052,2]
[335422300,1724218232125,-278.20752765,0.00013052,2]
[335422301,1724218232134,-184.92147885,0.00013052,2]
[335422302,1724218232144,-155.0,0.00013052,2]
[335422303,1724218232155,-155.0,0.00013052,2]
[335422304,1724218232164,-164.41632778,0.00013086,2]
[335422305,1724218232174,-150.99,0.00013292,2]
[335422306,1724218232183,-62.93134669,0.00013292,2]
[335422310,1724218237622,-4324.00658428,0.00013052,2]
[335422311,1724218237632,-1760.52774536,0.00013086,2]
[335422312,1724218237644,-314.98765456,0.00013086,2]
[335422313,1724218237654,-115.70601177,0.00013292,2]
[335422314,1724218237665,-73.65775577,0.00013292,2]
[335422315,1724218237683,-196.94405958,0.00013292,2]
[335422316,1724218237695,-401.62337545,0.0001368,2]
[335422317,1724218237707,-2092.09002674,0.0001399,2]
[335422318,1724218237720,-445.34091486,0.0001399,2]
[335422319,1724218237732,-595.90026326,0.0001399,2]
[335422320,1724218237743,-2500.0,0.00014125,2]
[335422321,1724218237755,-802.47318636,0.00014224,2]
[335422322,1724218237769,-658.65681364,0.00014224,2]
[335422323,1724218237780,-150.0,0.00014224,2]
[335422324,1724218237790,-888.04,0.00014225,2]
[335422325,1724218237801,-5166.23,0.00014225,2]
[335422326,1724218237813,-498.02397493,0.00014234,2]
[335422327,1724218237826,-368.51598216,0.00014245,2]
[335422328,1724218237838,-155.58712052,0.00014245,2]
[335422329,1724218237849,-193.29540477,0.00014245,2]
[335422330,1724218237860,-180.86500039,0.00014245,2]
[335422331,1724218237873,-162.38069797,0.00014245,2]
[335422332,1724218237883,-649.51,0.00014267,2]
[335422333,1724218237896,-150.99,0.00014267,2]
[335422334,1724218237907,-491.84,0.000143,2]
[335422335,1724218237917,-299.99,0.00014398,2]
[335422336,1724218237929,-4540.49,0.00014398,2]
[335422337,1724218237940,-155.32448926,0.00014398,2]
[335422338,1724218237951,-380.92710327,0.00014398,2]
[335422339,1724218237962,-1500.0,0.00014398,2]
[335422340,1724218237973,-200.0,0.0001441,2]
[335422341,1724218237983,-1470.17,0.00014428,2]
[335422342,1724218237994,-1257.5209126,0.00014509,2]
[335422343,1724218238005,-887.68,0.00014513,2]
[335422344,1724218238016,-213.30600429,0.00014753,2]
[335422345,1724218238027,-1369.35,0.0001477,2]
[335422346,1724218238038,-436.04,0.00014816,2]
[335422347,1724218238050,-200.44,0.0001494,2]
[335422348,1724218238061,-749.05,0.00014975,2]
[335422349,1724218238072,-627.50084023,0.00015,2]
[335422350,1724218238082,-4971.0,0.00015,2]
[335422351,1724218238093,-565.11018975,0.00015044,2]
[335422352,1724218238104,-502.69981957,0.00015044,2]
[335422353,1724218238117,-502.27319543,0.00015044,2]
[335422354,1724218238129,-210.77452502,0.00015044,2]
[335422355,1724218238139,-250.0,0.00015258,2]
[335422356,1724218238150,-150.0,0.00015288,2]
[335422357,1724218238162,-11324.03,0.00015346,2]
[335422358,1724218238173,-150.0,0.00015348,2]
[335422359,1724218238184,-499.99,0.00016199,2]
[335422360,1724218238196,-901.02,0.00016199,2]
[335422361,1724218238207,-1074.0,0.00016199,2]
[335422362,1724218238218,-187.2,0.00016234,2]
[335422363,1724218238228,-175.24,0.00016279,2]
[335422364,1724218238238,-887.68,0.00016327,2]
[335422365,1724218238249,-172.4,0.00016708,2]
[335422366,1724218238259,-1000.0,0.00016787,2]
[335422367,1724218238270,-1207.1225,0.000168,2]
[335422368,1724218238281,-200.44,0.00016807,2]
[335422369,1724218238291,-2265.6999,0.0001689,2]
[335422370,1724218238302,-172.70431108,0.00016898,2]
[335422371,1724218238313,-183.97398844,0.00016899,2]
[335422372,1724218238324,-166.2096,0.000169,2]
[335422373,1724218238336,-4405.19072013,0.000169,2]
[335422374,1724218238349,-655.52256456,0.000169,2]
[335422375,1724218238364,-8436.90292325,0.000169,2]
[335422376,1724218238377,-616.0766574,0.000169,2]
[335422377,1724218238390,-852.30110538,0.000169,2]
[335422391,1724218239812,-596.1793869,0.000169,2]
[335422392,1724218239983,-547.86202392,0.000169,2]
[335422393,1724218240098,-1182.8,0.000169,2]
[335422401,1724218242681,-764.0,0.00016044,2]
[335422402,1724218242693,-2544.76527191,0.000169,2]
[335422403,1724218242707,-905.3040249,0.000169,2]
[335422407,1724218245696,-1367.37555404,0.000169,2]
[335422408,1724218245756,-8015.20916761,0.000169,2]
[335422409,1724218245765,-256.3785692,0.000169,2]
[335422410,1724218245774,-370.4328156,0.000169,2]
[335422411,1724218245784,-205.89445862,0.000169,2]
[335422412,1724218245793,-175.24,0.0001695,2]
[335422413,1724218245802,-223.81316148,0.0001698,2]
[335422414,1724218245811,-296.88413412,0.0001698,2]
[335422415,1724218245820,-807.00450707,0.0001698,2]
[335422416,1724218245829,-1109.64,0.00016989,5]
[335422417,1724218245838,-1109.64,0.00016989,5]
[335422418,1724218245847,-1109.64,0.00016989,5]
[335422419,1724218245857,-1109.64,0.00016989,5]
[335422420,1724218245866,-1652.16,0.00016989,5]
[335422421,1724218245875,-1652.16,0.00016989,5]
[335422422,1724218245884,-1652.16,0.00016989,5]
[335422423,1724218245893,-1652.16,0.00016989,5]
[335422424,1724218245902,-500.0,0.00016989,5]
[335422425,1724218245911,-500.0,0.00016989,5]
[335422426,1724218245921,-500.0,0.00016989,5]
[335422427,1724218245930,-500.0,0.00016989,5]
[335422429,1724218245939,-1705.59,0.00016989,5]
[335422430,1724218245948,-1705.59,0.00016989,5]
[335422431,1724218245957,-1705.59,0.00016989,5]
[335422432,1724218245967,-1705.59,0.00016989,5]
[335422433,1724218245976,-803.36,0.00016989,5]
[335422434,1724218245985,-803.36,0.00016989,5]
[335422435,1724218245994,-803.36,0.00016989,5]
[335422437,1724218246004,-803.36,0.00016989,5]
[335422438,1724218246013,-2433.14,0.00016989,5]
[335422439,1724218246022,-2433.14,0.00016989,5]
[335422440,1724218246031,-2433.14,0.00016989,5]
[335422441,1724218246041,-2433.14,0.00016989,5]
[335422442,1724218246050,-1219.92,0.00016989,5]
[335422444,1724218246062,-1219.92,0.00016989,5]
[335422446,1724218246071,-1219.92,0.00016989,5]
[335422448,1724218246080,-1219.92,0.00016989,5]
[335422450,1724218246089,-1075.43,0.00016989,5]
[335422452,1724218246098,-1075.43,0.00016989,5]
[335422453,1724218246107,-1075.43,0.00016989,5]
[335422454,1724218246118,-1075.43,0.00016989,5]
[335422455,1724218246128,-1301.8,0.00016989,5]
[335422456,1724218246137,-1301.8,0.00016989,5]
[335422457,1724218246147,-1301.8,0.00016989,5]
[335422458,1724218246156,-1301.8,0.00016989,5]
[335422459,1724218246166,-500.0,0.00016989,5]
[335422460,1724218246176,-500.0,0.00016989,5]
[335422461,1724218246185,-500.0,0.00016989,5]
[335422462,1724218246195,-500.0,0.00016989,5]
[335422463,1724218246204,-511.49138624,0.00016989,2]
[335422464,1724218246214,-500.0,0.00016989,5]
[335422465,1724218246222,-500.0,0.00016989,5]
[335422466,1724218246232,-500.0,0.00016989,5]
[335422467,1724218246241,-500.0,0.00016989,5]
[335422468,1724218246250,-152.31,0.0001699,2]
[335422469,1724218246259,-152.31,0.0001699,2]
[335422470,1724218246268,-152.31,0.0001699,2]
[335422471,1724218246277,-152.31,0.0001699,2]
[335422472,1724218246287,-152.31,0.0001699,2]
[335422473,1724218246296,-152.31,0.0001699,2]
[335422474,1724218246306,-152.31,0.0001699,2]
[335422475,1724218246315,-152.31,0.0001699,2]
[335422476,1724218246324,-152.31,0.0001699,2]
[335422477,1724218246333,-152.31,0.0001699,2]
[335422478,1724218246342,-185.90864914,0.00016999,5]
[335422479,1724218246351,-360.0465136,0.00016999,5]
[335422480,1724218246360,-500.0,0.00016999,5]
[335422481,1724218246368,-500.0,0.00016999,5]
[335422482,1724218246377,-500.0,0.00016999,5]
[335422483,1724218246386,-520.48234369,0.00016999,5]
[335422484,1724218246395,-1109.64,0.00016999,5]
[335422485,1724218246404,-1109.64,0.00016999,5]
[335422486,1724218246414,-1109.64,0.00016999,5]
[335422487,1724218246423,-1109.64,0.00016999,5]
[335422488,1724218246432,-1109.64,0.00016999,5]
[335422489,1724218246441,-1109.64,0.00016999,5]
[335422490,1724218246450,-1109.64,0.00016999,5]
[335422491,1724218246459,-1109.64,0.00016999,5]
[335422492,1724218246469,-1109.64,0.00016999,5]
[335422493,1724218246478,-1652.16,0.00016999,5]
[335422494,1724218246487,-1652.16,0.00016999,5]
[335422495,1724218246496,-1652.16,0.00016999,5]
[335422496,1724218246505,-1652.16,0.00016999,5]
[335422497,1724218246514,-1652.16,0.00016999,5]
[335422498,1724218246523,-1652.16,0.00016999,5]
[335422499,1724218246532,-1652.16,0.00016999,5]
[335422500,1724218246541,-1652.16,0.00016999,5]
[335422501,1724218246550,-1652.16,0.00016999,5]
[335422502,1724218246560,-500.0,0.00016999,5]
[335422503,1724218246569,-500.0,0.00016999,5]
[335422504,1724218246578,-500.0,0.00016999,5]
[335422505,1724218246588,-500.0,0.00016999,5]
[335422506,1724218246597,-1705.59,0.00016999,5]
[335422507,1724218246606,-500.0,0.00016999,5]
[335422508,1724218246617,-1705.59,0.00016999,5]
[335422509,1724218246626,-1705.59,0.00016999,5]
[335422510,1724218246635,-611.60739957,0.00016999,5]
[335422511,1724218246644,-1705.59,0.00016999,5]
[335422512,1724218246655,-1705.59,0.00016999,5]
[335422513,1724218246664,-1705.59,0.00016999,5]
[335422514,1724218246673,-1705.59,0.00016999,5]
[335422515,1724218246682,-107.04333519,0.00016999,5]
[335422516,1724218246695,-252.76883574,0.00016999,5]
[335422517,1724218246706,-1345.77782907,0.00016999,5]
[335422518,1724218246715,-1705.59,0.00016999,5]
[335422519,1724218246724,-576.20437147,0.00016999,5]
[335422520,1724218246735,-399.98561821,0.00016999,5]
[335422521,1724218246749,-729.40001032,0.00016999,5]
[335422522,1724218246758,-277.30205183,0.00016999,5]
[335422523,1724218274422,150.5,0.000178,120]
[335422524,1724218274971,189.49,0.0001779,120]
[335422525,1724218280714,11019.38488534,0.000108,2]
[335422526,1724218280737,1307.32882847,0.000108,2]
[335422531,1724218334624,500.0,8.895e-05,2]
[335422532,1724218342362,562.91846876,8.054e-05,2]
[335422533,1724218501471,4798.86921683,0.0001,2]
[335422536,1724218628774,12830.88348594,0.00010999,2]
[335422537,1724218649809,318.03056554,6.988e-05,2]
[335422538,1724218802577,151.08468512,6.988e-05,2]
[335422540,1724218874475,150.5,0.000178,120]
[335422541,1724218874949,150.5,0.0001779,120]
[335422542,1724218875750,179.87,0.0001778,120]
[335422584,1724219431870,-594.99826677,0.00010026,2]
[335422585,1724219431928,-7801.51841368,0.00010026,2]
[335422586,1724219431939,-14982.31584799,0.00010949,2]
[335422587,1724219431950,-500.0,0.00011318,2]
[335422588,1724219431961,-6410.19422368,0.00011336,2]
[335422589,1724219431972,-190.05,0.00011568,2]
[335422590,1724219431983,-700.0,0.00012,2]
[335422591,1724219431994,-20133.87839727,0.0001209,2]
[335422592,1724219432006,-15000.0,0.000121,2]
[335422593,1724219432017,-1909.01565803,0.00012126,2]
[335422594,1724219432027,-1276.0146638,0.00012613,2]
[335422595,1724219432038,-1139.85619888,0.00012613,2]
[335422596,1724219432049,-450.24,0.00012788,2]
[335422597,1724219432061,-1075.39701707,0.0001294,2]
[335422598,1724219432073,-219.01573695,0.00013001,2]
[335422599,1724219432087,-164.41632778,0.00013001,2]
[335422600,1724219432099,-227.53466977,0.00013042,2]
[335422601,1724219432110,-254.98834616,0.00013042,2]
[335422604,1724219432120,-155.00000002,0.00013042,2]
[335422605,1724219432130,-155.0,0.00013042,2]
[335422607,1724219432141,-155.0,0.00013052,2]
[335422608,1724219432151,-347.0,0.00014086,2]
[335422609,1724219432161,-499.99,0.00014225,2]
[335422610,1724219432173,-164.72,0.00014267,2]
[335422611,1724219432184,-200.0,0.00014274,2]
[335422612,1724219432196,-150.0,0.00014323,2]
[335422613,1724219432208,-4584.4,0.00014324,2]
[335422614,1724219432219,-23900.0,0.00014342,2]
[335422615,1724219432229,-1398.29,0.00014458,2]
[335422616,1724219432239,-532.61,0.0001446,2]
[335422617,1724219432251,-197.27215158,0.00014509,2]
[335422618,1724219432262,-2154.52,0.00014515,2]
[335422619,1724219432272,-250.0,0.00014607,2]
[335422620,1724219432282,-348.79962853,0.00014782,2]
[335422621,1724219432295,-500.0,0.00014855,2]
[335422622,1724219432305,-570.76,0.000149,2]
[335422623,1724219432316,-500.0,0.00015044,2]
[335422624,1724219432326,-500.0,0.00015044,2]
[335422625,1724219432336,-500.0,0.00015044,2]
[335422626,1724219432347,-450.24,0.00015052,2]
[335422627,1724219432357,-150.0,0.00015288,2]
[335422628,1724219432367,-769.45078328,0.00015764,2]
[335422629,1724219432378,-167.0,0.00015831,2]
[335422630,1724219432388,-184.95,0.00015854,2]
[335422631,1724219432398,-467.39,0.00015995,2]
[335422632,1724219432408,-1000.0,0.00016,16]
[335422633,1724219432419,-171.75,0.00016223,2]
[335422634,1724219432430,-532.61,0.00016267,2]
[335422635,1724219432440,-1084.735536,0.00016598,5]
[335422636,1724219432451,-1313.575552,0.00016598,5]
[335422637,1724219432461,-587.995011,0.00016598,5]
[335422638,1724219432680,-164.72,0.00016645,2]
[335422639,1724219432691,-3386.56928892,0.0001679,2]
[335422640,1724219432702,-1000.0,0.0001679,2]
[335422641,1724219432712,-6725.9096,0.0001679,2]
[335422642,1724219432723,-416.8454,0.0001679,2]
[335422643,1724219432733,-826.11,0.0001679,2]
[335422644,1724219432744,-304.35,0.0001688,3]
[335422645,1724219432756,-500.0,0.00016889,5]
[335422646,1724219432767,-500.0,0.00016889,5]
[335422647,1724219432778,-1353.31,0.00016889,5]
[335422648,1724219432789,-1629.6,0.00016889,5]
[335422649,1724219432799,-757.24,0.00016889,5]
[335422650,1724219432810,-500.0,0.00016889,5]
[335422651,1724219432820,-2027.62,0.00016889,5]
[335422652,1724219432830,-500.0,0.00016889,5]
[335422653,1724219432841,-852.51,0.00016889,5]
[335422654,1724219432852,-896.19,0.00016889,5]
[335422655,1724219432862,-1016.6,0.00016889,5]
[335422656,1724219432873,-1084.84,0.00016889,5]
[335422657,1724219432883,-500.0,0.00016889,5]
[335422658,1724219432893,-500.0,0.00016889,5]
[335422659,1724219432904,-500.0,0.00016889,5]
[335422660,1724219432914,-152.31,0.0001689,2]
[335422661,1724219432925,-16660.0222,0.0001689,2]
[335422662,1724219432935,-353.4979,0.0001689,2]
[335422663,1724219432945,-70942.87025389,0.0001689,2]
[335422664,1724219432959,-4776.29766075,0.0001689,2]
[335422665,1724219432971,-1075.43,0.0001689,2]
[335422666,1724219432988,-4426.84300389,0.0001689,2]
[335422667,1724219433000,-639.67170895,0.0001689,2]
[335422669,1724219437855,-171.75,0.00014773,2]
[335422670,1724219437866,-345.73729456,0.000168,2]
[335422671,1724219437877,-6307.79567252,0.0001689,2]
[335422672,1724219437887,-19783.4632689,0.0001689,2]
[335422673,1724219437900,-1341.57,0.0001689,2]
[335422674,1724219437913,-1720.75393469,0.0001689,2]
[335422675,1724219438020,-473.3383626,0.000168,2]
[335422676,1724219438078,-290.17964089,0.000168,2]
[335422677,1724219438088,-310.32035911,0.0001689,2]
[335422678,1724219438100,-13402.3994373,0.0001689,2]
[335422679,1724219438110,-418.51079206,0.00016899,2]
[335422680,1724219438119,-500.0,0.00016899,5]